bitfinex/quotes_SOLUSD_20260302
["timestamp","ask_amount","ask_price","bid_price","bid_amount"]
[1772446396881,11.96916742,83.548,83.513,2.4653835]
[1772446397057,11.96916742,83.548,83.521,2.4653835]
[1772446398454,41.89208598,83.548,83.521,2.4653835]
[1772446399286,2.56383831,83.539,83.502,2.47036729]
[1772446399463,41.89208598,83.548,83.491,11.97730664]
[1772446399464,2.56383831,83.529,83.491,2.47036729]
[1772446399658,2.56383831,83.529,83.447,47.93441538]
[1772446399659,11.81713477,83.5,83.471,2.47036729]
[1772446399863,2.56383831,83.509,83.48,11.81713477]
[1772446400375,2.56383831,83.509,83.479,2.47036729]
[1772446401070,2.56383831,83.499,83.441,0.28432314]
[1772446401275,2.56383831,83.489,83.45,11.81713477]
[1772446402081,89.81175455,83.508,83.439,11.98480326]
[1772446402082,2.56383831,83.507,83.47,11.81713477]
[1772446402461,2.56383831,83.499,83.46,11.81713477]
[1772446403185,2.56383831,83.497,83.461,2.26913065]
[1772446404083,14.54017307,83.498,83.471,2.26835239]
[1772446404470,14.54017307,83.498,83.45,11.81713477]
[1772446404471,2.56383831,83.489,83.45,11.81713477]
[1772446404981,2.56383831,83.489,83.45,23.80035825]
[1772446405180,2.56383831,83.487,83.45,11.81713477]
[1772446405688,2.56383831,83.487,83.45,14.08395735]
[1772446405979,2.56383831,83.487,83.451,2.26682258]
[1772446406189,47.8949745,83.517,83.429,3.69383402]
[1772446406190,2.56383831,83.523,83.481,2.26682258]
[1772446406360,41.90412335,83.524,83.49,11.81713477]
[1772446406361,2.56383831,83.519,83.49,11.81713477]
[1772446406561,2.56383831,83.519,83.48,11.81713477]
[1772446406777,2.56383831,83.509,83.47,11.81713477]
[1772446406980,2.56383831,83.509,83.471,2.26594353]
[1772446407279,11.81713477,83.51,83.471,2.26594353]
[1772446407280,2.56383831,83.507,83.471,2.26594353]
[1772446407483,11.9749006,83.508,83.463,2.26507458]
[1772446407484,2.56383831,83.499,83.463,2.26507458]
[1772446408688,41.91717166,83.498,83.46,11.81713477]
[1772446408879,2.56383831,83.497,83.46,11.81713477]
[1772446409193,2.56383831,83.497,83.461,14.24585973]
[1772446409668,2.56383831,83.497,83.461,2.26421561]
[1772446409865,2.56383831,83.497,83.46,11.81713477]
[1772446410278,2.56383831,83.497,83.47,11.81713477]
[1772446410475,2.56383831,83.489,83.45,14.07966193]
[1772446410884,2.56383831,83.487,83.46,11.81713477]
[1772446411899,2.56383831,83.495,83.47,11.81713477]
[1772446412110,11.97690852,83.494,83.47,11.81713477]
[1772446412305,2.56383831,83.493,83.46,14.07883222]
[1772446412873,2.56383831,83.491,83.46,2.26169745]
[1772446413094,2.56383831,83.491,83.46,14.07883222]
[1772446413297,2.56383831,83.491,83.462,2.26087727]
[1772446414393,2.56383831,83.491,83.461,11.98164412]
[1772446414394,2.56383831,83.489,83.454,2.25926507]
[1772446414592,2.56383831,83.489,83.455,11.98250554]
[1772446414798,2.56383831,83.489,83.46,11.81713477]
[1772446415103,11.97776926,83.488,83.46,11.81713477]
[1772446415400,2.56383831,83.487,83.46,11.81713477]
[1772446416486,11.9780562,83.486,83.46,11.81713477]
[1772446416690,2.56383831,83.485,83.46,11.81713477]
[1772446417396,2.56383831,83.485,83.451,2.25691554]
[1772446418303,2.56383831,83.469,83.43,14.07328505]
[1772446418606,2.56383831,83.467,83.433,2.25615028]
[1772446419175,11.98008923,83.472,83.441,2.25615028]
[1772446419386,2.56383831,83.471,83.441,2.25615028]
[1772446420295,11.98035222,83.47,83.45,11.81713477]
[1772446420596,11.98035222,83.47,83.413,3.69383402]
[1772446420597,2.56398656,83.469,83.438,11.98491431]
[1772446420993,2.56398656,83.469,83.44,11.81713477]
[1772446423497,2.56398656,83.509,83.46,11.81713477]
[1772446423689,2.56398656,83.509,83.48,11.81713477]
[1772446424108,2.56398656,83.509,83.47,11.81713477]
[1772446425607,2.56398656,83.507,83.47,11.81713477]
[1772446426685,2.56398656,83.505,83.47,11.81713477]
[1772446427487,2.56398656,83.499,83.47,11.81713477]
[1772446427687,2.56398656,83.499,83.463,11.98129171]
[1772446427911,2.56398656,83.497,83.47,11.81713477]
[1772446428605,11.97633476,83.498,83.44,11.81713477]
[1772446428606,2.56398656,83.479,83.44,11.81713477]
[1772446430684,2.56398656,83.477,83.441,11.984516]
[1772446430912,11.9792041,83.478,83.45,11.81713477]
[1772446431095,11.97858623,83.483,83.46,11.81713477]
[1772446431605,14.54257279,83.483,83.46,11.81713477]
[1772446432092,11.97858623,83.483,83.46,11.81713477]
[1772446432293,2.56398656,83.482,83.45,11.81713477]
[1772446432499,2.56398656,83.479,83.441,11.984516]
[1772446433494,2.56398656,83.479,83.431,29.96478386]
[1772446433723,2.56398656,83.477,83.44,11.82203561]
[1772446435092,2.56398656,83.469,83.43,11.82203561]
[1772446435414,41.92721435,83.478,83.42,0.1]
[1772446435415,2.56398656,83.459,83.42,11.92203561]
[1772446435908,2.56398656,83.457,83.42,11.92203561]
[1772446436106,2.56398656,83.457,83.421,11.98738926]
[1772446436304,47.89513397,83.516,83.421,11.98738926]
[1772446436305,11.98142556,83.463,83.43,11.82203561]
[1772446436507,11.98142556,83.463,83.44,11.82203561]
[1772446436817,11.98142556,83.463,83.421,41.95586242]
[1772446436818,2.56398656,83.462,83.43,11.82203561]
[1772446438012,2.56398656,83.462,83.44,11.82203561]
[1772446438201,11.98142556,83.463,83.44,11.82203561]
[1772446439112,2.56398656,83.462,83.44,11.82203561]
[1772446440230,11.98164412,83.461,83.44,11.82203561]
[1772446440922,2.56398656,83.46,83.43,11.82203561]
[1772446442123,2.56398656,83.46,83.431,11.98595246]
[1772446442308,11.98193124,83.459,83.431,11.98595246]
[1772446442621,14.5459178,83.459,83.44,11.82203561]
[1772446443118,2.56398656,83.459,83.44,11.82203561]
[1772446443305,11.98122557,83.464,83.44,11.82203561]
[1772446443695,2.56398656,83.463,83.44,11.82203561]
[1772446444222,2.56398656,83.463,83.441,11.984516]
[1772446444421,11.98122557,83.464,83.441,11.984516]
[1772446446226,11.98122557,83.464,83.42,0.1]
[1772446446227,2.56398656,83.487,83.451,11.98307989]
[1772446446524,2.56398656,83.487,83.46,4.41178272]
[1772446448806,11.9780562,83.486,83.46,16.39351358]
[1772446450005,2.56398656,83.485,83.46,16.39351358]
[1772446450206,2.56398656,83.485,83.44,4.41178272]
[1772446450207,2.56398656,83.479,83.44,4.41178272]
[1772446450511,2.56398656,83.459,83.42,11.92721819]
[1772446450723,137.7476463,83.486,83.42,0.1]
[1772446450724,2.56398656,83.439,83.42,0.1]
[1772446451028,2.56398656,83.437,83.42,0.1]
[1772446451225,0.28432314,83.482,83.431,2.48996474]
[1772446451406,11.82721819,83.47,83.431,2.48996474]
[1772446452209,41.92369886,83.485,83.44,11.82721819]
[1772446452415,11.82721819,83.48,83.44,11.82721819]
[1772446452626,11.82721819,83.48,83.44,14.31718293]
[1772446452830,11.82721819,83.48,83.441,2.48996474]
[1772446453126,11.9790606,83.479,83.442,14.47433711]
[1772446453305,2.55181347,83.478,83.442,11.98437237]
[1772446453510,2.55181347,83.478,83.443,2.31651165]
[1772446454742,2.55181347,83.469,83.44,11.82721819]
[1772446455229,14.53245275,83.468,83.441,2.31651165]
[1772446456136,14.53245275,83.468,83.441,14.30102765]
[1772446456637,2.55181347,83.467,83.441,2.31651165]
[1772446457223,2.4010874,83.465,83.441,2.31651165]
[1772446457632,2.4010874,83.465,83.436,11.98515199]
[1772446457825,2.4010874,83.465,83.44,11.82721819]
[1772446458024,2.4010874,83.465,83.436,11.98515199]
[1772446458526,2.4010874,83.463,83.44,11.82721819]
[1772446459234,11.98045179,83.47,83.451,2.43529088]
[1772446459420,11.97963152,83.476,83.451,2.43529088]
[1772446459929,14.38071892,83.476,83.451,2.43529088]
[1772446460125,14.38071892,83.476,83.46,11.82721819]
[1772446460431,14.38071892,83.476,83.451,2.43529088]
[1772446464942,2.4010874,83.475,83.451,2.43529088]
[1772446469348,11.97977813,83.474,83.451,2.43529088]
[1772446469533,2.4010874,83.473,83.451,2.43529088]
[1772446470922,2.4010874,83.473,83.45,11.82721819]
[1772446471129,2.4010874,83.473,83.44,11.82721819]
[1772446471346,2.4010874,83.471,83.441,11.984516]
[1772446472556,2.4010874,83.469,83.441,11.984516]
[1772446473137,2.4010874,83.469,83.442,2.43529088]
[1772446476260,0.4,83.486,83.44,4.41373794]
[1772446476261,2.4010874,83.528,83.461,2.43529088]
[1772446476436,2.4010874,83.528,83.485,2.43529088]
[1772446476837,2.4010874,83.528,83.48,4.41373794]
[1772446477031,2.4010874,83.528,83.49,4.41373794]
[1772446477339,2.4010874,83.528,83.481,2.43529088]
[1772446477538,41.89559616,83.541,83.471,2.43529088]
[1772446477539,2.4010874,83.509,83.471,2.43529088]
[1772446477940,2.4010874,83.509,83.48,4.41373794]
[1772446478346,2.4010874,83.507,83.48,4.41373794]
[1772446479158,2.4010874,83.524,83.49,4.41373794]
[1772446479955,2.4010874,83.519,83.486,2.43529088]
[1772446480160,2.4010874,83.519,83.48,18.82794228]
[1772446480459,2.4010874,83.517,83.481,2.43529088]
[1772446480659,2.4010874,83.517,83.49,4.41373794]
[1772446481134,2.4010874,83.517,83.49,6.84902882]
[1772446481751,2.4010874,83.517,83.5,4.41373794]
[1772446482332,4.41373794,83.54,83.5,4.41373794]
[1772446482333,2.4010874,83.535,83.5,4.41373794]
[1772446482753,2.4010874,83.534,83.5,4.41373794]
[1772446482952,2.4010874,83.534,83.51,4.41373794]
[1772446483258,2.4010874,83.534,83.5,6.84902882]
[1772446483447,2.4010874,83.534,83.5,4.41373794]
[1772446483850,2.4010874,83.532,83.501,2.43529088]
[1772446484160,2.4010874,83.532,83.502,2.43529088]
[1772446484565,2.4010874,83.532,83.51,4.41373794]
[1772446484863,47.87565208,83.55,83.501,11.97590448]
[1772446484864,2.4010874,83.542,83.52,4.41373794]
[1772446485062,2.4010874,83.542,83.511,2.43529088]
[1772446485653,4.41373794,83.54,83.5,4.41373794]
[1772446485962,4.41373794,83.56,83.53,4.41373794]
[1772446485963,2.4010874,83.56,83.53,4.41373794]
[1772446486166,2.4010874,83.56,83.531,2.43529088]
[1772446487461,2.4010874,83.56,83.54,4.41373794]
[1772446488360,14.28851301,83.559,83.54,4.41373794]
[1772446488662,14.28851301,83.559,83.54,11.79475788]
[1772446489546,29.91539925,83.569,83.532,41.90001121]
[1772446489547,11.9661597,83.569,83.532,41.90001121]
[1772446489742,11.9661597,83.569,83.521,2.47731653]
[1772446489743,2.32092125,83.568,83.521,2.47731653]
[1772446490049,2.32092125,83.568,83.53,11.79475788]
[1772446490262,2.32092125,83.566,83.53,23.76649657]
[1772446491866,2.32092125,83.566,83.54,11.79475788]
[1772446493076,2.32092125,83.564,83.54,11.79475788]
[1772446494249,2.32092125,83.562,83.53,11.79475788]
[1772446494469,2.32092125,83.562,83.53,11.79852488]
[1772446495374,2.32092125,83.562,83.521,2.47731653]
[1772446495953,2.32092125,83.559,83.521,2.47731653]
[1772446496269,2.32092125,83.557,83.53,11.79852488]
[1772446497885,2.32092125,83.557,83.521,2.47731653]
[1772446498382,2.32092125,83.555,83.53,11.79852488]
[1772446498684,2.32092125,83.555,83.524,2.47731653]
[1772446498977,2.32092125,83.555,83.53,11.79852488]
[1772446500876,2.32092125,83.553,83.53,11.79852488]
[1772446501072,2.32092125,83.539,83.5,11.79852488]
[1772446501785,2.32092125,83.539,83.5,14.27584141]
[1772446501962,2.32092125,83.539,83.501,2.47731653]
[1772446502163,41.88907772,83.554,83.521,2.47731653]
[1772446502367,11.79852488,83.56,83.54,11.79852488]
[1772446502368,14.28846929,83.56,83.54,11.79852488]
[1772446503684,2.32092125,83.568,83.542,2.47731653]
[1772446504664,2.32092125,83.568,83.54,11.79852488]
[1772446504985,2.32092125,83.566,83.53,11.79852488]
[1772446505484,2.32092125,83.559,83.52,11.79852488]
[1772446505664,2.32092125,83.539,83.5,11.79852488]
[1772446506291,2.32092125,83.529,83.49,11.79852488]
[1772446507066,2.32092125,83.527,83.5,11.79852488]
[1772446507267,2.32092125,83.527,83.501,2.47731653]
[1772446507787,11.97203333,83.528,83.51,14.27584141]
[1772446508286,11.97145856,83.533,83.511,2.47731653]
[1772446510181,11.97145856,83.533,83.52,11.79852488]
[1772446510483,11.97145856,83.533,83.511,2.47731653]
[1772446510984,59.8334266,83.566,83.494,3.69383402]
[1772446510985,14.28708095,83.569,83.521,2.47731653]
[1772446511159,14.28708095,83.569,83.52,8.81205308]
[1772446511160,11.9661597,83.569,83.56,4.40602654]
[1772446511365,2.32092125,83.568,83.55,4.40602654]
[1772446511561,0.2,83.58,83.561,2.47731653]
[1772446511783,2.32092125,83.587,83.57,4.40602654]
[1772446512178,29.9045204,83.6,83.53,4.82477569]
[1772446512179,11.96186557,83.599,83.58,4.40602654]
[1772446512592,11.96186557,83.599,83.58,11.78282901]
[1772446513092,14.45439547,83.605,83.59,11.78282901]
[1772446513294,2.49338836,83.604,83.59,11.78282901]
[1772446513711,2.49338836,83.618,83.59,11.78282901]
[1772446514388,2.49338836,83.616,83.59,11.78282901]
[1772446515194,2.49338836,83.614,83.572,2.4581563]
[1772446515499,2.49338836,83.614,83.58,11.78282901]
[1772446516390,2.49338836,83.609,83.58,11.78282901]
[1772446519002,0.2,83.65,83.581,304.35537752]
[1772446519300,47.79806842,83.686,83.62,11.78282901]
[1772446519301,11.95328655,83.659,83.62,11.78282901]
[1772446519600,11.78282901,83.64,83.6,11.78282901]
[1772446519906,11.78282901,83.63,83.59,11.78282901]
[1772446520402,11.78282901,83.64,83.6,11.78282901]
[1772446520580,41.83650294,83.659,83.6,11.78282901]
[1772446520783,11.78282901,83.64,83.6,11.78282901]
[1772446521011,2.54241764,83.637,83.601,11.9615794]
[1772446521379,0.2,83.66,83.632,2.52597999]
[1772446521578,0.2,83.66,83.64,11.78282901]
[1772446521992,11.95328655,83.659,83.64,11.78282901]
[1772446522192,11.95328655,83.659,83.632,2.52597999]
[1772446522404,11.95328655,83.659,83.63,11.78282901]
[1772446523402,11.95328655,83.659,83.63,26.26623442]
[1772446524190,2.43110315,83.658,83.63,26.26623442]
[1772446524588,2.43110315,83.658,83.519,13.44323722]
[1772446524589,2.43110315,83.649,83.61,11.78282901]
[1772446525304,2.43110315,83.649,83.611,2.52597999]
[1772446525604,2.43110315,83.647,83.612,11.96000574]
[1772446525805,2.43110315,83.647,83.592,29.90702841]
[1772446525806,2.43110315,83.639,83.603,2.52597999]
[1772446525994,2.43110315,83.639,83.61,11.78282901]
[1772446526700,2.43110315,83.639,83.603,2.52597999]
[1772446526900,2.43110315,83.639,83.601,11.9615794]
[1772446527408,2.43110315,83.639,83.601,14.48755939]
[1772446527702,2.43110315,83.637,83.602,2.52597999]
[1772446529105,2.43110315,83.637,83.61,11.78282901]
[1772446530102,14.38767687,83.636,83.602,2.52597999]
[1772446530412,2.43110315,83.635,83.604,2.52597999]
[1772446532716,11.78282901,83.63,83.604,2.52597999]
[1772446533004,11.78282901,83.63,83.579,33.60535426]
[1772446533005,2.43110315,83.629,83.6,11.78282901]
[1772446533213,2.43110315,83.629,83.591,2.52597999]
[1772446533798,2.43110315,83.619,83.584,2.52597999]
[1772446534194,2.43110315,83.619,83.59,11.78282901]
[1772446535498,2.43110315,83.617,83.57,2.52597999]
[1772446535789,2.43110315,83.609,83.572,2.52597999]
[1772446536697,2.43110315,83.609,83.53,101.9]
[1772446536698,2.43110315,83.599,83.564,2.52597999]
[1772446537708,2.43110315,83.597,83.564,2.52597999]
[1772446538915,2.43110315,83.595,83.564,2.52597999]
[1772446540020,2.43110315,83.595,83.561,2.52597999]
[1772446541307,2.43110315,83.593,83.561,2.52597999]
[1772446542722,2.43110315,83.591,83.561,2.52597999]
[1772446543218,2.43110315,83.591,83.538,29.92626008]
[1772446543219,2.43110315,83.589,83.55,11.78282901]
[1772446543523,2.43110315,83.589,83.551,2.52597999]
[1772446543720,2.43110315,83.579,83.551,2.52597999]
[1772446543920,2.43110315,83.579,83.541,2.52597999]
[1772446544321,2.43110315,83.579,83.551,2.52597999]
[1772446545207,14.39594234,83.579,83.553,2.52597999]
[1772446546805,11.96483919,83.579,83.56,14.308809]
[1772446547121,11.96483919,83.579,83.56,2.52597999]
[1772446547313,2.29690502,83.583,83.56,2.52597999]
[1772446549330,2.29690502,83.581,83.551,2.49775815]
[1772446551229,2.29690502,83.579,83.551,2.49775815]
[1772446551535,2.29690502,83.577,83.551,2.49775815]
[1772446551827,2.29690502,83.577,83.536,2.49775815]
[1772446552007,2.29690502,83.569,83.536,2.49775815]
[1772446553729,2.29690502,83.567,83.536,2.49775815]
[1772446555435,2.29690502,83.565,83.536,2.49775815]
[1772446556038,11.96609125,83.57,83.541,2.49775815]
[1772446556230,11.96609125,83.57,83.551,2.49775815]
[1772446557142,32.21014896,83.576,83.551,2.49775815]
[1772446557638,2.29690502,83.575,83.551,2.49775815]
[1772446559217,11.96544379,83.574,83.551,2.49775815]
[1772446559715,41.87905328,83.574,83.551,2.49775815]
[1772446559919,44.1759583,83.574,83.551,2.49775815]
[1772446560119,2.29690502,83.573,83.551,2.49775815]
[1772446560922,11.96573014,83.572,83.551,2.49775815]
[1772446561938,11.96522637,83.576,83.551,2.49775815]
[1772446562145,9.1874756,83.576,83.553,2.49775815]
[1772446562345,2.29690502,83.575,83.541,2.49775815]
[1772446563236,2.29690502,83.573,83.541,2.49775815]
[1772446563441,2.29690502,83.569,83.535,14.46870148]
[1772446563746,2.29690502,83.569,83.535,2.49775815]
[1772446564724,11.79404694,83.56,83.535,2.49775815]
[1772446565040,41.88206011,83.568,83.535,2.49775815]
[1772446565041,2.29690502,83.559,83.535,2.49775815]
[1772446566437,11.96773498,83.558,83.535,2.49775815]
[1772446566838,2.29690502,83.557,83.535,2.49775815]
[1772446568872,14.26492646,83.556,83.535,2.49775815]
[1772446570243,29.91575722,83.568,83.491,16.80470158]
[1772446570244,11.79404694,83.54,83.491,16.80470158]
[1772446570438,2.5200879,83.539,83.501,11.97590448]
[1772446570943,2.5200879,83.529,83.501,11.97590448]
[1772446571333,29.91575722,83.568,83.5,0.1]
[1772446571334,2.5200879,83.519,83.5,0.1]
[1772446572342,2.5200879,83.517,83.5,0.1]
[1772446572651,2.5200879,83.509,83.477,0.04408742]
[1772446573356,2.5200879,83.509,83.48,11.79404694]
[1772446574136,11.9749006,83.508,83.48,11.79404694]
[1772446574343,2.5200879,83.507,83.48,11.79404694]
[1772446574932,59.85989073,83.529,83.48,11.79404694]
[1772446574933,2.5200879,83.527,83.5,11.79404694]
[1772446575132,2.5200879,83.527,83.491,0.0441488]
[1772446575133,2.5200879,83.527,83.49,11.79404694]
[1772446575558,2.5200879,83.527,83.5,11.79404694]
[1772446576143,2.5200879,83.526,83.5,11.79404694]
[1772446576368,2.5200879,83.524,83.5,11.79404694]
[1772446576940,2.5200879,83.524,83.492,11.97707156]
[1772446577547,2.5200879,83.524,83.492,12.02056507]
[1772446578052,11.97194047,83.529,83.501,0.04349351]
[1772446578356,14.49202837,83.529,83.51,11.79404694]
[1772446579048,14.49202837,83.529,83.471,4.82477569]
[1772446579049,11.96902416,83.549,83.52,12.08691671]
[1772446579628,11.96902416,83.549,83.52,11.79404694]
[1772446580146,41.89158457,83.549,83.52,11.79404694]
[1772446580358,11.96759176,83.559,83.52,11.79404694]
[1772446580651,11.79404694,83.55,83.52,11.79404694]
[1772446580855,11.79404694,83.55,83.51,11.79404694]
[1772446581157,2.39532019,83.539,83.51,11.79404694]
[1772446582343,11.9706002,83.538,83.51,11.79404694]
[1772446582545,2.39532019,83.537,83.51,11.79404694]
[1772446582934,2.39532019,83.537,83.5,11.79404694]
[1772446583649,2.39532019,83.529,83.491,11.97719777]
[1772446584151,2.39532019,83.529,83.49,11.79404694]
[1772446584532,2.39532019,83.527,83.49,11.79404694]
[1772446584736,2.39532019,83.527,83.491,11.97733887]
[1772446585041,2.39532019,83.527,83.5,11.79404694]
[1772446585242,2.39532019,83.527,83.49,11.79404694]
[1772446587242,2.39532019,83.525,83.49,11.79404694]
[1772446588963,2.39532019,83.523,83.49,11.79404694]
[1772446590358,2.39532019,83.521,83.49,11.79404694]
[1772446590662,2.39532019,83.521,83.5,11.79404694]
[1772446590858,2.39532019,83.521,83.49,11.79404694]
[1772446591253,2.39532019,83.521,83.457,8.51860971]
[1772446591254,2.39532019,83.519,83.48,11.79404694]
[1772446592065,2.39532019,83.509,83.48,11.79404694]
[1772446592758,2.39532019,83.507,83.48,11.79404694]
[1772446594655,11.97518741,83.506,83.48,11.79404694]
[1772446594864,2.39532019,83.505,83.48,11.79404694]
[1772446596145,11.97547422,83.504,83.48,11.79404694]
[1772446596360,2.39532019,83.503,83.48,11.79404694]
[1772446596669,2.39532019,83.503,83.48,4.40939686]
[1772446597470,2.39532019,83.503,83.451,0.29033739]
[1772446597661,2.39532019,83.499,83.47,4.40939686]
[1772446597965,2.39532019,83.499,83.471,0.29033739]
[1772446598155,2.39532019,83.499,83.47,4.40939686]
[1772446598472,2.39532019,83.497,83.47,4.40939686]
[1772446599349,2.39532019,83.497,83.45,0.1]
[1772446599350,2.39532019,83.497,83.454,0.29010793]
[1772446599662,2.39532019,83.497,83.46,4.40939686]
[1772446600064,2.39532019,83.502,83.48,4.40939686]
[1772446600274,2.39532019,83.502,83.49,4.40939686]
[1772446600756,2.39532019,83.509,83.491,11.97733887]
[1772446600956,2.39532019,83.515,83.5,4.40939686]
[1772446601154,11.97344661,83.519,83.5,4.40939686]
[1772446601666,2.39532019,83.522,83.51,4.40939686]
[1772446602764,29.92651732,83.538,83.48,4.40939686]
[1772446602765,2.39532019,83.529,83.506,12.26494937]
[1772446602964,2.39532019,83.529,83.51,4.40939686]
[1772446603348,11.97129856,83.534,83.51,4.69917038]
[1772446603748,14.36661875,83.534,83.51,0.28977352]
[1772446603949,14.36661875,83.534,83.51,4.69917038]
[1772446604250,29.92264655,83.549,83.503,0.2896646]
[1772446604251,2.39532019,83.533,83.503,0.2896646]
[1772446604568,2.39532019,83.533,83.51,4.40939686]
[1772446604968,2.39532019,83.548,83.52,4.40939686]
[1772446606273,2.39532019,83.546,83.52,4.40939686]
[1772446606573,2.39532019,83.546,83.51,4.40939686]
[1772446606871,2.39532019,83.539,83.51,4.40939686]
[1772446607653,2.48114507,83.537,83.51,4.40939686]
[1772446609266,2.48114507,83.535,83.51,4.40939686]
[1772446609965,14.45145034,83.541,83.52,4.40939686]
[1772446610156,2.48114507,83.541,83.53,4.40939686]
[1772446610656,2.48114507,83.541,83.52,4.40939686]
[1772446612164,2.48114507,83.541,83.521,11.97303672]
[1772446612361,2.48114507,83.558,83.53,4.40939686]
[1772446613477,2.48114507,83.556,83.54,4.40939686]
[1772446613661,2.48114507,83.556,83.53,4.40939686]
[1772446614678,2.48114507,83.556,83.53,4.40381481]
[1772446615380,2.48114507,83.554,83.53,4.40381481]
[1772446617062,2.48114507,83.554,83.52,4.40381481]
[1772446617286,2.48114507,83.552,83.52,4.40381481]
[1772446617582,2.48114507,83.549,83.511,11.97440647]
[1772446617982,2.48114507,83.549,83.52,4.40381481]
[1772446618967,2.48114507,83.547,83.511,11.97440647]
[1772446619374,2.48114507,83.547,83.512,0.28808266]
[1772446620185,11.96945395,83.546,83.513,11.97418366]
[1772446620387,2.48114507,83.545,83.513,11.97418366]
[1772446622189,2.48114507,83.545,83.513,12.26200091]
[1772446622578,2.48114507,83.543,83.52,4.40381481]
[1772446623990,2.48114507,83.541,83.513,12.26200091]
[1772446624490,2.48114507,83.541,83.478,101.9]
[1772446624491,2.48114507,83.539,83.5,4.40381481]
[1772446624667,2.48114507,83.529,83.492,0.28756087]
[1772446624862,2.48114507,83.529,83.493,11.97705196]
[1772446625085,2.48114507,83.529,83.494,0.28756087]
[1772446625269,2.48114507,83.529,83.5,4.40381481]
[1772446626271,2.48114507,83.527,83.5,16.37972574]
[1772446626686,2.48114507,83.533,83.51,4.40381481]
[1772446627683,2.48114507,83.531,83.507,11.975044]
[1772446627991,2.48114507,83.531,83.5,4.40381481]
[1772446628182,2.48114507,83.529,83.5,4.40381481]
[1772446628581,2.48114507,83.529,83.497,11.97634699]
[1772446628979,2.48114507,83.529,83.5,4.40381481]
[1772446629182,2.48114507,83.527,83.5,4.40381481]
[1772446633000,2.48114507,83.525,83.493,11.97696658]
[1772446633697,2.48114507,83.525,83.49,4.40381481]
[1772446633698,2.39532019,83.519,83.48,4.40381481]
[1772446633876,2.39532019,83.509,83.474,12.26654583]
[1772446635281,2.39532019,83.507,83.474,12.26654583]
[1772446635877,2.39532019,83.507,83.475,0.28661977]
[1772446636075,2.39532019,83.507,83.48,4.69043458]
[1772446636277,11.97425269,83.513,83.49,4.40381481]
[1772446636593,14.36957288,83.513,83.49,4.40381481]
[1772446637584,2.43182289,83.512,83.482,0.28640418]
[1772446638498,2.43182289,83.512,83.482,12.26490586]
[1772446640188,2.43182289,83.51,83.483,0.28626455]
[1772446642097,2.43182289,83.51,83.484,11.97834315]
[1772446646004,2.43182289,83.508,83.481,12.26463812]
[1772446646393,2.43182289,83.508,83.482,0.28580049]
[1772446647102,11.975044,83.507,83.482,0.28580049]
[1772446647305,2.43182289,83.499,83.461,30.23959214]
[1772446647505,2.43182289,83.499,83.463,0.28573721]
[1772446648204,2.43182289,83.497,83.464,11.98121345]
[1772446649309,2.43182289,83.497,83.465,0.28567465]
[1772446650005,2.43182289,83.509,83.48,4.68942762]
[1772446650509,2.43182289,83.508,83.481,11.97877361]
[1772446652488,2.43182289,83.508,83.448,47.93381911]
[1772446652489,4.40381481,83.49,83.451,0.28543152]
[1772446652689,2.43182289,83.489,83.451,0.28543152]
[1772446652900,2.43182289,83.479,83.451,0.28543152]
[1772446654517,2.43182289,83.495,83.47,4.40381481]
[1772446655294,2.43182289,83.495,83.471,11.98020869]
[1772446659117,2.43182289,83.494,83.46,4.40381481]
[1772446659322,2.43182289,83.489,83.453,11.98267519]
[1772446659527,2.43182289,83.489,83.454,0.28503217]
[1772446660207,2.43182289,83.487,83.455,11.98250554]
[1772446660414,2.43182289,83.479,83.45,16.48692262]
[1772446661198,2.43182289,83.479,83.45,16.77190034]
[1772446661919,2.43182289,83.479,83.451,0.28492388]
[1772446662100,2.43182289,83.479,83.452,11.98293629]
[1772446663517,2.43182289,83.478,83.452,11.98293629]
[1772446664715,2.43182289,83.478,83.45,4.50381481]
[1772446664896,11.9793476,83.477,83.45,4.50381481]
[1772446665215,2.43182289,83.476,83.45,4.50381481]
[1772446667120,2.43182289,83.476,83.451,11.98307989]
[1772446668917,2.43182289,83.476,83.453,11.9827927]
[1772446671421,2.43182289,83.476,83.453,12.26721111]
[1772446672816,2.43182289,83.476,83.453,12.26711684]
[1772446673022,2.43182289,83.476,83.453,11.9827927]
[1772446674232,2.39532019,83.474,83.45,4.50381481]
[1772446675221,2.39532019,83.474,83.451,11.98307989]
[1772446675616,2.39532019,83.474,83.451,12.26726664]
[1772446676013,2.39532019,83.487,83.452,0.28418675]
[1772446678117,2.39532019,83.485,83.454,0.28409776]
[1772446679521,2.39532019,83.479,83.45,0.1]
[1772446680328,2.39532019,83.477,83.45,0.1]
[1772446680833,2.39532019,83.477,83.451,0.28396809]
[1772446681015,2.39532019,83.477,83.45,0.1]
[1772446681926,2.39532019,83.477,83.451,0.28392585]
[1772446682321,4.41193864,83.49,83.453,0.28392585]
[1772446682537,2.39532019,83.489,83.453,0.28392585]
[1772446682737,2.39532019,83.489,83.452,41.94027703]
[1772446682738,2.39532019,83.489,83.461,0.2838841]
[1772446682922,2.39532019,83.489,83.471,0.2838841]
[1772446683121,2.39532019,83.489,83.452,41.94027703]
[1772446683122,2.39532019,83.489,83.453,0.28432314]
[1772446683321,2.39532019,83.489,83.455,0.2838841]